bitfinex-derivatives/quotes_BTCF0:USTF0_20241022
["timestamp","ask_amount","ask_price","bid_price","bid_amount"]
[1729558579516,0.17,67212.0,67211.0,0.074418]
[1729558579712,0.12532174,67212.0,67211.0,0.074418]
[1729558580024,0.074418,67211.0,67210.0,0.26956]
[1729558580220,0.074412,67217.0,67212.0,0.074416]
[1729558580430,0.17,67214.0,67212.0,0.074416]
[1729558583215,0.074408,67220.0,67216.0,0.074413]
[1729558583419,0.17,67218.0,67216.0,0.074413]
[1729558583828,0.244411,67218.0,67212.0,0.435216]
[1729558584018,0.244411,67218.0,67213.0,0.074415]
[1729558584019,0.17,67215.0,67213.0,0.074415]
[1729558587427,0.17,67215.0,67212.0,0.3608]
[1729558587615,0.244414,67215.0,67212.0,0.3608]
[1729558588231,0.244414,67215.0,67213.0,0.10044882]
[1729558588430,0.17,67215.0,67210.0,0.268]
[1729558588623,0.244418,67211.0,67210.0,0.268]
[1729558591431,0.074421,67208.0,67207.0,0.2764]
[1729558591625,0.074423,67207.0,67203.0,0.26783195]
[1729558592534,0.074423,67207.0,67203.0,0.34225795]
[1729558594146,0.074423,67207.0,67206.0,0.46196319]
[1729558596635,0.074423,67207.0,67206.0,0.55070436]
[1729558597138,0.074423,67207.0,67206.0,0.46196319]
[1729558598228,0.074423,67207.0,67206.0,0.58278508]
[1729558598435,0.074423,67207.0,67206.0,0.58294995]
[1729558601839,0.074423,67207.0,67206.0,0.22214995]
[1729558603333,0.074423,67207.0,67206.0,0.22220144]
[1729558604232,0.17,67208.0,67206.0,0.22220144]
[1729558604431,0.17,67208.0,67207.0,0.22220144]
[1729558604826,0.244421,67208.0,67207.0,0.22220144]
[1729558607630,0.074425,67205.0,67204.0,0.3608]
[1729558607847,0.244425,67205.0,67204.0,0.3608]
[1729558608638,0.244425,67205.0,67204.0,0.42027345]
[1729558610346,0.074425,67205.0,67204.0,0.42027345]
[1729558610544,0.244425,67205.0,67204.0,0.42027345]
[1729558614150,0.244425,67205.0,67204.0,0.3608]
[1729558614646,0.244425,67205.0,67204.0,0.42027461]
[1729558615236,0.244425,67205.0,67204.0,0.3608]
[1729558615635,0.244425,67205.0,67204.0,0.5830729]
[1729558618451,0.07443,67200.0,67194.0,0.1038871]
[1729558618653,0.07443,67200.0,67197.0,0.1211619]
[1729558618842,0.07443,67200.0,67198.0,0.1211619]
[1729558619040,0.3608,67206.0,67199.0,0.1211619]
[1729558619248,0.3608,67206.0,67203.0,0.08927484]
[1729558619249,0.074425,67205.0,67203.0,0.08927484]
[1729558619444,0.17,67204.0,67203.0,0.08927484]
[1729558619648,0.17,67204.0,67198.0,0.074432]
[1729558619853,0.074425,67205.0,67199.0,0.12017143]
[1729558620049,0.3608,67206.0,67200.0,0.12017143]
[1729558620351,0.3608,67206.0,67201.0,0.12020126]
[1729558620657,0.435224,67206.0,67205.0,0.08927529]
[1729558620856,0.074433,67198.0,67195.0,0.4646871]
[1729558621051,0.17,67197.0,67191.0,0.1038871]
[1729558621253,0.17,67197.0,67190.0,0.11872812]
[1729558621254,0.17,67193.0,67192.0,0.12028943]
[1729558621647,0.244438,67193.0,67192.0,0.12028943]
[1729558621956,0.414438,67193.0,67192.0,0.12028943]
[1729558622169,0.074439,67192.0,67189.0,0.00223255]
[1729558622353,0.17,67190.0,67189.0,0.00223255]
[1729558622551,0.17,67190.0,67189.0,0.12190513]
[1729558622756,0.17,67190.0,67189.0,0.00223255]
[1729558623757,0.17,67193.0,67191.0,0.07444]
[1729558623962,0.17,67193.0,67192.0,0.342739]
[1729558626051,0.17,67194.0,67192.0,0.342739]
[1729558626652,0.36164,67213.0,67193.0,0.17]
[1729558626852,0.074421,67209.0,67207.0,0.0445771]
[1729558627057,0.074421,67209.0,67206.0,0.05943613]
[1729558627361,0.074421,67209.0,67207.0,0.05943613]
[1729558627662,0.17,67208.0,67207.0,0.05943613]
[1729558628360,0.17,67208.0,67206.0,0.074423]
[1729558628958,0.17,67208.0,67207.0,0.0594318]
[1729558629354,0.17,67208.0,67206.0,0.074423]
[1729558629851,0.17,67208.0,67207.0,0.074423]
[1729558630059,0.3608,67213.0,67207.0,0.28877114]
[1729558630358,0.17,67214.0,67213.0,0.074416]
[1729558631057,0.17,67217.0,67215.0,0.074413]
[1729558631258,0.17,67217.0,67209.0,0.2617]
[1729558631453,0.17,67213.0,67212.0,0.074417]
[1729558632749,0.12532049,67213.0,67212.0,0.19296439]
[1729558633152,0.12532049,67213.0,67212.0,0.074417]
[1729558633556,0.074414,67216.0,67212.0,0.09946479]
[1729558633762,0.17,67214.0,67213.0,0.17387979]
[1729558634760,0.17,67214.0,67213.0,0.21750379]
[1729558634963,0.244415,67214.0,67213.0,0.21750379]
[1729558635356,0.244415,67214.0,67213.0,0.09946479]
[1729558636463,0.61632,67214.0,67213.0,0.17356669]
[1729558636669,0.78632,67214.0,67211.0,0.07424878]
[1729558636864,0.5308,67212.0,67211.0,0.07425033]
[1729558637066,0.605217,67212.0,67211.0,0.07425033]
[1729558637564,0.435217,67212.0,67211.0,0.17358574]
[1729558637765,0.3608,67212.0,67200.0,0.4456716]
[1729558637966,0.17,67204.0,67201.0,0.074429]
[1729558640487,0.17,67204.0,67198.0,0.3608]
[1729558640796,0.074431,67199.0,67198.0,0.3608]
[1729558641389,0.074436,67195.0,67191.0,0.07444]
[1729558641618,0.17,67192.0,67189.0,0.00223255]
[1729558641891,0.435241,67190.0,67189.0,0.00223255]
[1729558642887,0.3608,67190.0,67180.0,0.074452]
[1729558643191,0.17,67184.0,67179.0,0.3608]
[1729558643392,0.17,67184.0,67183.0,0.074449]
[1729558644998,0.17,67184.0,67183.0,0.17453284]
[1729558645492,0.3608,67190.0,67189.0,0.074442]
[1729558645697,0.17,67199.0,67189.0,0.27008384]
[1729558645881,0.17,67199.0,67194.0,0.07418778]
[1729558646081,0.17,67199.0,67195.0,0.1739075]
[1729558646391,0.17,67199.0,67195.0,0.07418778]
[1729558646583,0.17,67196.0,67195.0,0.07418778]
[1729558646778,0.17,67196.0,67195.0,0.17386686]
[1729558646986,0.17,67196.0,67195.0,0.09967908]
[1729558647191,0.17,67199.0,67195.0,0.17385383]
[1729558647501,0.17,67199.0,67197.0,0.07417475]
[1729558647696,0.17,67199.0,67196.0,0.14860875]
[1729558648294,0.17,67199.0,67196.0,0.074434]
[1729558649301,0.17,67199.0,67194.0,0.07417475]
[1729558649607,0.074439,67192.0,67191.0,0.07417475]
[1729558649824,0.17,67192.0,67191.0,0.07444]
[1729558650107,0.17,67192.0,67191.0,0.17432798]
[1729558650496,0.3608,67197.0,67196.0,0.074435]
[1729558651594,0.3608,67197.0,67196.0,0.24831114]
[1729558652404,0.3608,67197.0,67196.0,0.17413584]
[1729558653895,0.3608,67197.0,67196.0,0.09970084]
[1729558654098,0.17,67197.0,67196.0,0.09970084]
[1729558654707,0.244434,67197.0,67196.0,0.09970084]
[1729558655007,0.605234,67197.0,67196.0,0.09970084]
[1729558655206,0.5308,67197.0,67193.0,0.07418233]
[1729558655508,0.244437,67194.0,67193.0,0.07418233]
[1729558656607,0.244437,67194.0,67193.0,0.09971891]
[1729558656803,0.61758731,67209.0,67193.0,0.79036254]
[1729558656804,0.36156,67209.0,67193.0,0.79036254]
[1729558656999,0.36156,67209.0,67208.0,0.22934144]
[1729558657000,0.3608,67209.0,67208.0,0.22934144]
[1729558657216,0.3608,67209.0,67205.0,0.17]
[1729558657399,0.3608,67209.0,67205.0,0.07417681]
[1729558657601,0.17,67208.0,67206.0,0.07417681]
[1729558658603,0.074422,67208.0,67206.0,0.07417681]
[1729558658807,0.074416,67213.0,67207.0,0.07417681]
[1729558659006,0.074416,67213.0,67212.0,0.05933099]
[1729558659206,0.3609403,67214.0,67211.0,0.05933099]
[1729558659413,0.244417,67212.0,67211.0,0.05933099]
[1729558659814,0.17,67212.0,67206.0,0.04449872]
[1729558660108,0.074421,67208.0,67206.0,0.04449872]
[1729558660410,0.074423,67207.0,67206.0,0.04449872]
[1729558661412,0.07822356,67207.0,67206.0,0.04449872]
[1729558662815,0.074424,67206.0,67205.0,0.04449872]
[1729558663016,0.074429,67201.0,67200.0,0.05933099]
[1729558663215,0.074431,67199.0,67198.0,0.05933099]
[1729558663508,0.074431,67199.0,67197.0,0.05933099]
[1729558663509,0.074433,67198.0,67197.0,0.05933099]
[1729558663813,0.074434,67197.0,67196.0,0.05933099]
[1729558664019,0.17,67199.0,67194.0,0.00223177]
[1729558664314,0.07823456,67197.0,67194.0,0.00223177]
[1729558664516,0.074435,67196.0,67194.0,0.00223177]
[1729558665106,0.074436,67195.0,67194.0,0.00223177]
[1729558665511,0.07823656,67195.0,67194.0,0.00223177]
[1729558666814,0.07823656,67195.0,67194.0,0.07640858]
[1729558667506,0.07823656,67195.0,67194.0,0.00223177]
[1729558667706,0.07823656,67195.0,67194.0,0.07640858]
[1729558667900,0.07823656,67195.0,67194.0,0.22077947]
[1729558668230,0.07823656,67195.0,67194.0,0.22079846]
[1729558668604,0.00380056,67195.0,67194.0,0.22079846]
[1729558669000,0.00380056,67195.0,67194.0,0.29523546]
[1729558674619,0.07442,67210.0,67202.0,0.074427]
[1729558674816,0.5308,67215.0,67205.0,0.08920609]
[1729558674817,0.074421,67209.0,67205.0,0.08920609]
[1729558675007,0.074421,67209.0,67206.0,0.18891891]
[1729558675402,0.074421,67209.0,67206.0,0.09971282]
[1729558675613,0.074417,67212.0,67207.0,0.09971282]
[1729558675807,0.074418,67211.0,67210.0,0.08921106]
[1729558676021,0.074418,67211.0,67210.0,0.18892096]
[1729558676220,0.244418,67211.0,67210.0,0.18892096]
[1729558676404,0.244418,67211.0,67210.0,0.09971282]
[1729558676605,0.0001403,67214.0,67210.0,0.17413182]
[1729558676804,0.0001403,67214.0,67211.0,0.09971282]
[1729558677013,0.0001403,67214.0,67212.0,0.09971282]
[1729558677209,0.0001403,67214.0,67213.0,0.09971282]
[1729558677915,0.0745553,67214.0,67213.0,0.09971282]
[1729558681019,0.0745553,67214.0,67213.0,0.09913516]
[1729558682910,0.0001403,67214.0,67212.0,0.074417]
[1729558683216,0.074419,67210.0,67209.0,0.2764]
[1729558683417,0.244419,67210.0,67207.0,0.074422]
[1729558683716,0.07442,67209.0,67207.0,0.074422]
[1729558687321,0.3608,67209.0,67194.0,0.00223177]
[1729558687526,0.17,67198.0,67194.0,0.00223177]
[1729558687723,0.074431,67200.0,67194.0,0.24666877]
[1729558688222,0.074436,67195.0,67194.0,0.00223177]
[1729558688406,0.17,67200.0,67194.0,0.00223177]
[1729558688607,0.074431,67199.0,67194.0,0.00223177]
[1729558689420,0.074434,67197.0,67194.0,0.00223177]
[1729558689926,0.074434,67197.0,67195.0,0.2182582]
[1729558690226,0.244434,67197.0,67196.0,0.2182582]
[1729558691320,0.074434,67197.0,67196.0,0.2182582]
[1729558692624,0.244434,67197.0,67196.0,0.2182582]
[1729558692823,0.244434,67197.0,67196.0,0.09957209]
[1729558694032,0.074434,67197.0,67196.0,0.09957209]
[1729558697322,0.074429,67201.0,67196.0,0.09957209]
[1729558697524,0.074429,67201.0,67198.0,0.08916324]
[1729558697734,0.074429,67201.0,67199.0,0.09957209]
[1729558697944,0.074429,67201.0,67200.0,0.09957209]
[1729558698831,0.36156,67203.0,67200.0,0.09957209]
[1729558699032,0.3608,67203.0,67201.0,0.18873533]
[1729558699229,0.3608,67203.0,67202.0,0.09957209]
[1729558699623,0.605227,67203.0,67202.0,0.09957209]
[1729558701231,0.244427,67203.0,67202.0,0.09957209]
[1729558701432,0.074427,67203.0,67202.0,0.18873533]
[1729558701733,0.3608,67209.0,67202.0,0.09957209]
[1729558702039,0.3608,67209.0,67208.0,0.08916856]
[1729558702040,0.07442,67209.0,67208.0,0.08916856]
[1729558702740,0.07442,67209.0,67208.0,0.09957209]
[1729558703233,0.00076,67212.0,67208.0,0.17]
[1729558703447,0.0001403,67214.0,67213.0,0.074416]
[1729558704644,0.0001403,67214.0,67213.0,0.17351115]
[1729558705628,0.0001403,67214.0,67213.0,0.29147958]
[1729558706337,0.0001403,67214.0,67213.0,0.17351115]
[1729558706723,0.0001403,67214.0,67213.0,0.09909515]
[1729558706932,0.0745553,67214.0,67213.0,0.09909515]
[1729558707132,0.4353553,67214.0,67213.0,0.09900371]
[1729558707629,0.3609403,67214.0,67212.0,0.07427228]
[1729558707835,0.074417,67212.0,67210.0,0.07427228]
[1729558708032,0.074419,67210.0,67209.0,0.07427228]
[1729558708230,0.074419,67210.0,67209.0,0.17360635]
[1729558708440,0.94636,67210.0,67208.0,0.07427228]
[1729558708650,0.94636,67210.0,67207.0,0.07427228]
[1729558708651,0.074421,67208.0,67207.0,0.07427228]
[1729558708938,0.244421,67208.0,67207.0,0.07427228]
[1729558709235,0.690781,67208.0,67207.0,0.07427228]
[1729558709638,0.97716,67208.0,67199.0,0.08912772]
[1729558709823,0.435229,67201.0,67200.0,0.09969004]
[1729558710024,0.605229,67201.0,67200.0,0.09969004]
[1729558711031,0.435229,67201.0,67200.0,0.09969004]
[1729558712644,0.5308,67208.0,67201.0,0.074428]
[1729558712830,0.435222,67208.0,67204.0,0.074425]
[1729558713642,0.074423,67207.0,67204.0,0.074425]
[1729558713939,0.074423,67207.0,67203.0,0.17]
[1729558714139,0.3608,67208.0,67206.0,0.17]
[1729558714440,0.3608,67208.0,67206.0,0.244424]
[1729558714826,0.07442,67209.0,67206.0,0.244424]
[1729558715027,0.2744,67213.0,67208.0,0.074421]
[1729558715240,0.2744,67213.0,67201.0,0.2691]
[1729558715241,0.00076,67215.0,67213.0,0.074416]
[1729558715431,0.074411,67218.0,67213.0,0.074416]
[1729558718238,0.17,67219.0,67213.0,0.074416]
[1729558718453,0.074413,67216.0,67213.0,0.074416]
[1729558718834,0.17,67219.0,67213.0,0.074416]
[1729558719035,0.17,67222.0,67213.0,0.074416]
[1729558719235,0.074408,67220.0,67213.0,0.074416]
[1729558719544,0.17,67222.0,67213.0,0.08524786]
[1729558719751,0.07441,67219.0,67213.0,0.08524786]
[1729558720048,0.17,67218.0,67213.0,0.08524786]
[1729558720431,0.07441,67219.0,67213.0,0.08524786]
[1729558720642,0.07441,67219.0,67213.0,0.18362619]
[1729558721940,0.07441,67219.0,67213.0,0.18364134]
[1729558723246,0.07441,67218.0,67213.0,0.18364134]
[1729558724047,0.3715668,67223.0,67213.0,0.54444134]
[1729558724240,0.074408,67220.0,67213.0,0.54444134]
[1729558724845,0.074409,67219.0,67213.0,0.54444134]
[1729558725345,0.0107668,67223.0,67213.0,0.54444134]
[1729558725346,0.074411,67218.0,67213.0,0.54444134]
[1729558727547,0.074412,67217.0,67213.0,0.54444134]
[1729558727754,0.074412,67217.0,67213.0,0.66174556]
[1729558728068,0.074412,67217.0,67215.0,0.08904734]
[1729558728239,0.074412,67217.0,67216.0,0.09839348]
[1729558729639,0.074412,67217.0,67216.0,0.18744082]
[1729558730537,0.244407,67221.0,67216.0,0.26185382]
[1729558730736,0.07441,67218.0,67217.0,0.09839348]
[1729558730938,0.24441,67218.0,67217.0,0.09839348]
[1729558731742,0.61632,67218.0,67209.0,0.08904734]
[1729558731938,0.074418,67211.0,67210.0,0.0989254]
[1729558733139,0.244418,67211.0,67210.0,0.0989254]
[1729558734755,0.25484105,67211.0,67210.0,0.0989254]
[1729558735743,0.25484105,67211.0,67203.0,0.074427]
[1729558735744,0.074422,67208.0,67203.0,0.074427]
[1729558736543,0.17,67207.0,67203.0,0.074427]
[1729558737355,0.17,67204.0,67200.0,0.36236]
[1729558737557,0.17,67201.0,67196.0,0.074434]
[1729558737743,0.074435,67196.0,67195.0,0.28596]
[1729558737940,0.074435,67196.0,67195.0,0.2844]
[1729558738340,0.17,67204.0,67196.0,0.074434]
[1729558738539,0.03396274,67203.0,67198.0,0.17]
[1729558738753,0.17,67207.0,67200.0,0.074429]
[1729558739052,0.03402666,67206.0,67200.0,0.074429]
[1729558739255,0.17,67207.0,67200.0,0.074429]
[1729558739256,0.10845166,67205.0,67200.0,0.074429]
[1729558739449,0.03402666,67204.0,67200.0,0.074429]
[1729558739651,0.07443,67201.0,67199.0,0.2792]
[1729558739853,0.07443,67200.0,67199.0,0.2792]
[1729558740965,0.17,67200.0,67195.0,0.2844]
[1729558741154,0.244435,67196.0,67194.0,0.00223177]
[1729558741652,0.17,67196.0,67194.0,0.00223177]
[1729558741951,0.074436,67195.0,67194.0,0.00223177]
[1729558742759,0.074436,67195.0,67194.0,0.10178546]
[1729558743157,0.074436,67195.0,67194.0,0.19090293]
[1729558743763,0.074432,67199.0,67194.0,0.19088602]
[1729558743975,0.4439,67202.0,67201.0,0.074429]
[1729558743976,0.3608,67202.0,67201.0,0.074429]
[1729558744158,0.3608,67202.0,67201.0,0.17398269]
[1729558744355,0.24442,67210.0,67204.0,0.074426]
[1729558744569,0.074416,67213.0,67209.0,0.17]
[1729558744749,0.074416,67213.0,67211.0,0.07423263]
[1729558745563,0.074416,67213.0,67209.0,0.17]
[1729558745564,0.074416,67213.0,67212.0,0.07423263]
[1729558745759,0.074416,67213.0,67212.0,0.1732668]
[1729558746662,0.074416,67213.0,67212.0,0.17324409]
[1729558747052,0.074416,67213.0,67212.0,0.17323712]
[1729558747252,0.3608,67215.0,67212.0,0.34323712]
[1729558747563,0.3608,67215.0,67214.0,0.074415]
[1729558747769,0.074436,67195.0,67191.0,0.10390951]
[1729558748070,0.7008,67195.0,67183.0,0.074449]
[1729558748278,0.5308,67184.0,67183.0,0.074449]
[1729558748766,0.5308,67184.0,67181.0,0.2639]
[1729558751270,0.48610295,67184.0,67181.0,0.2639]
[1729558751565,0.48610295,67184.0,67182.0,0.11497568]
[1729558751863,0.48610295,67184.0,67181.0,0.2639]
[1729558752468,0.48610295,67184.0,67181.0,0.338351]
[1729558758375,0.48610295,67184.0,67182.0,0.07445]
[1729558759762,0.48610295,67184.0,67183.0,0.074449]
[1729558759962,0.48610295,67184.0,67161.0,0.2676]
[1729558759963,0.074465,67169.0,67161.0,0.2676]
[1729558760168,0.074466,67168.0,67161.0,0.2676]
[1729558760462,0.5308,67162.0,67161.0,0.2676]
[1729558762167,0.605272,67162.0,67157.0,0.01063576]
[1729558762372,0.17,67158.0,67155.0,0.91496]
[1729558762574,0.17,67158.0,67155.0,0.9134]
[1729558762801,0.17,67158.0,67156.0,0.09714015]
[1729558763074,0.17,67158.0,67155.0,0.9134]
[1729558763075,0.17,67158.0,67157.0,0.09714015]
[1729558763693,0.17,67158.0,67157.0,0.09708121]
[1729558764798,0.17,67158.0,67157.0,0.09705781]
[1729558766401,0.17,67158.0,67155.0,0.7151432]
[1729558766693,0.17,67158.0,67156.0,0.09702007]
[1729558767003,0.17,67158.0,67157.0,0.09702007]
[1729558767202,0.3608,67169.0,67157.0,0.17]
[1729558767502,0.5308,67169.0,67165.0,0.074469]
[1729558767804,0.5308,67169.0,67166.0,0.2766]
[1729558768501,0.3608,67169.0,67166.0,0.5528]
[1729558768699,0.5308,67169.0,67168.0,0.074466]
[1729558770699,0.3608,67169.0,67168.0,0.074466]
[1729558770900,0.17,67172.0,67171.0,0.074462]
[1729558771105,0.3608,67177.0,67176.0,0.074457]
[1729558771407,0.17,67184.0,67176.0,0.26632577]
[1729558771600,0.17,67184.0,67168.0,0.3608]
[1729558771601,0.17,67180.0,67179.0,0.074453]
[1729558777511,0.074454,67179.0,67166.0,0.55436]
[1729558777811,0.17,67167.0,67166.0,0.56360204]
[1729558778700,0.17,67170.0,67166.0,0.56360204]
[1729558778905,0.17,67170.0,67168.0,0.074466]
[1729558779104,0.17,67170.0,67169.0,0.074465]
[1729558779316,0.5308,67174.0,67169.0,0.074465]
[1729558779503,0.17,67170.0,67169.0,0.074465]
[1729558780095,0.11784507,67170.0,67169.0,0.17118709]
[1729558780700,0.17,67173.0,67171.0,0.074461]
[1729558780918,0.17,67173.0,67172.0,0.18573417]
[1729558781407,0.17,67173.0,67172.0,0.09672209]
[1729558782102,0.24446,67173.0,67172.0,0.09672209]
[1729558783104,0.17,67176.0,67172.0,0.18573417]
[1729558783306,0.17,67176.0,67172.0,0.08901208]
[1729558783514,0.17,67176.0,67173.0,0.09630287]
[1729558783702,0.17,67176.0,67174.0,0.09630287]
[1729558783904,0.17,67176.0,67175.0,0.09630287]
[1729558784811,0.5308,67180.0,67175.0,0.09630287]
[1729558785018,0.3608,67180.0,67179.0,0.08901208]
[1729558785222,0.3608,67180.0,67179.0,0.18531495]
[1729558785223,0.605252,67180.0,67179.0,0.18531495]
[1729558786423,0.5308,67180.0,67179.0,0.17075687]
[1729558786720,0.3608,67180.0,67179.0,0.17075687]
[1729558787220,0.5308,67180.0,67179.0,0.17075687]
[1729558788208,0.5308,67180.0,67179.0,0.074454]
[1729558789319,0.5308,67180.0,67179.0,0.01061966]
[1729558789620,0.5308,67180.0,67174.0,0.074459]
[1729558789825,0.17,67175.0,67174.0,0.074459]
[1729558795318,0.12530009,67175.0,67174.0,0.2856071]
[1729558796112,0.12530009,67175.0,67174.0,0.2111481]
[1729558798518,0.074456,67178.0,67174.0,0.2111481]
[1729558798714,0.074456,67178.0,67175.0,0.2111481]
[1729558798921,0.17,67179.0,67176.0,0.2111481]
[1729558799216,0.17,67179.0,67177.0,0.2111481]
[1729558799433,0.17,67179.0,67178.0,0.2111481]
[1729558800339,0.3608,67180.0,67179.0,0.074454]
[1729558800519,0.3608,67188.0,67179.0,0.7079481]
[1729558800735,0.3608,67188.0,67181.0,0.17]
[1729558800921,0.3608,67188.0,67184.0,0.074448]
[1729558801118,0.3608,67188.0,67185.0,0.2111481]
[1729558801318,0.3608,67188.0,67186.0,0.2111481]
[1729558801520,0.3608,67188.0,67187.0,0.2111481]
[1729558801724,0.5308,67188.0,67187.0,0.2111481]
[1729558802625,0.5308,67188.0,67187.0,0.09632837]
[1729558803027,0.3608,67188.0,67187.0,0.09632837]
[1729558803238,0.4437072,67188.0,67185.0,0.17]
[1729558803425,0.0829072,67187.0,67182.0,0.5308]
[1729558803620,0.0829072,67187.0,67186.0,0.17]
[1729558803826,0.03825698,67187.0,67186.0,0.244446]
[1729558804027,0.03825698,67187.0,67186.0,0.074446]
[1729558804533,0.20825698,67187.0,67182.0,0.37290556]
[1729558804748,0.17,67183.0,67180.0,0.248]
[1729558804927,0.03825698,67182.0,67179.0,0.4968]
[1729558805141,0.17,67180.0,67179.0,0.4968]
[1729558805332,0.20825698,67180.0,67179.0,0.4968]
[1729558806542,0.32699946,67180.0,67179.0,0.2486]
[1729558806832,0.074461,67172.0,67167.0,0.2508]
[1729558807026,0.17,67168.0,67162.0,0.236912]
[1729558807223,0.17,67164.0,67162.0,0.24761064]
[1729558807427,0.17,67164.0,67159.0,0.76626]
[1729558807428,0.39848798,67163.0,67159.0,0.26806]
[1729558807667,0.17,67160.0,67159.0,0.00156]
[1729558807834,0.20768798,67160.0,67156.0,0.01051516]
[1729558808025,0.17,67157.0,67154.0,0.00019316]
[1729558808230,0.03768798,67156.0,67154.0,0.00019316]
[1729558808432,0.03753158,67155.0,67154.0,0.00019316]
[1729558809732,0.08051352,67155.0,67142.0,0.074494]
[1729558809939,0.17,67146.0,67138.0,1.11528]
[1729558810135,0.03687609,67145.0,67138.0,1.12594874]
[1729558810443,0.17,67146.0,67139.0,0.21191822]
[1729558810736,0.17,67146.0,67140.0,0.21191822]
[1729558811036,0.074486,67150.0,67140.0,0.21191822]
[1729558811037,0.3608,67142.0,67141.0,0.09667971]
[1729558811224,0.3608,67142.0,67138.0,0.07416749]
[1729558811430,0.3608,67142.0,67138.0,0.04450361]
[1729558811431,0.074496,67141.0,67138.0,0.04450361]
[1729558811733,0.074496,67141.0,67122.0,0.3608]
[1729558811734,0.0745,67138.0,67136.0,0.04450361]
[1729558811947,0.17,67137.0,67136.0,0.04450361]
[1729558812129,0.074501,67136.0,67134.0,0.05932856]
[1729558812331,0.074503,67134.0,67130.0,0.04444673]
[1729558812624,0.5308,67131.0,67130.0,0.04444673]
[1729558812828,0.5308,67131.0,67127.0,0.05932856]
[1729558813028,0.3608,67131.0,67128.0,0.05932856]
[1729558813239,0.5308,67131.0,67129.0,0.04440204]
[1729558813627,0.5308,67131.0,67130.0,0.04440204]
[1729558813823,0.5308,67131.0,67124.0,0.17]
[1729558813824,0.3608,67131.0,67128.0,0.22932856]
[1729558814038,0.3608,67135.0,67130.0,0.07416749]
[1729558814244,0.3608,67135.0,67129.0,0.2572]
[1729558814245,0.3608,67135.0,67134.0,0.17]
[1729558815241,0.3608,67135.0,67134.0,0.04434344]
[1729558815242,0.31607107,67135.0,67134.0,0.04434344]
[1729558815435,0.31607107,67135.0,67132.0,0.0591868]
[1729558815739,0.48607107,67135.0,67132.0,0.04434307]
[1729558816139,0.48607107,67135.0,67131.0,0.04434307]
[1729558816339,0.17,67132.0,67130.0,0.04434307]
[1729558816736,0.48607107,67135.0,67130.0,0.04434307]
[1729558816939,0.48607107,67135.0,67131.0,0.04434307]
[1729558817335,0.48607107,67135.0,67130.0,0.04434307]
[1729558817535,0.31607107,67135.0,67132.0,0.04434307]
[1729558817840,0.48607107,67135.0,67132.0,0.04434307]
[1729558818348,0.48607107,67135.0,67131.0,0.04434307]
[1729558819530,0.17,67132.0,67129.0,0.2572]
[1729558819733,0.07451,67128.0,67127.0,0.04428676]
[1729558819929,0.074515,67124.0,67118.0,0.04428676]
[1729558820136,0.17,67120.0,67115.0,0.31738676]
[1729558820448,0.3608,67122.0,67115.0,0.2731]
[1729558820449,0.17,67116.0,67115.0,0.2731]
[1729558820645,0.3608,67122.0,67115.0,0.2731]
[1729558821435,0.3608,67122.0,67119.0,0.17]
[1729558821829,0.244508,67131.0,67119.0,0.17]
[1729558821830,0.074508,67131.0,67119.0,0.21428676]
[1729558822137,0.244508,67131.0,67123.0,0.17]
[1729558822345,0.074508,67131.0,67126.0,0.17]
[1729558822747,0.074508,67131.0,67123.0,0.17]
[1729558822748,0.605308,67131.0,67123.0,0.17]
[1729558824747,0.244508,67131.0,67123.0,0.17]
[1729558825245,0.17,67131.0,67123.0,0.17]
[1729558825638,0.17,67128.0,67120.0,0.04428676]
[1729558825845,0.17,67128.0,67119.0,0.57664676]
[1729558826044,0.17,67128.0,67119.0,0.57508676]
[1729558826542,0.17,67128.0,67120.0,0.04428676]
[1729558826747,0.17,67128.0,67119.0,0.57664676]
[1729558826935,0.17,67128.0,67120.0,0.04428676]
[1729558827137,0.17,67128.0,67121.0,0.04428676]
[1729558827336,0.074512,67127.0,67121.0,0.04428676]
[1729558827747,0.17,67124.0,67120.0,0.04428676]
[1729558827945,0.074516,67123.0,67120.0,0.04428676]
[1729558828141,0.074516,67123.0,67121.0,0.3608]
[1729558828447,0.074516,67123.0,67119.0,0.04428676]
[1729558828648,0.17,67131.0,67122.0,0.3608]
[1729558828844,0.074507,67131.0,67129.0,0.17]
[1729558829342,0.074507,67131.0,67125.0,0.21428676]
[1729558829947,0.074507,67131.0,67125.0,0.17]
[1729558831035,0.074507,67131.0,67125.0,0.21428676]
[1729558831343,0.074507,67131.0,67125.0,0.17]
[1729558831542,0.074507,67131.0,67125.0,0.21428676]
[1729558831742,0.17,67133.0,67125.0,0.21428676]
[1729558831743,0.074508,67130.0,67125.0,0.21428676]
[1729558831944,0.074512,67126.0,67124.0,0.271]
[1729558832150,0.074512,67126.0,67125.0,0.04429238]
[1729558832346,0.074512,67126.0,67124.0,0.271]
[1729558833546,0.074512,67126.0,67124.0,0.3301868]
[1729558833856,0.435312,67126.0,67119.0,0.04435526]
[1729558834042,0.074523,67117.0,67116.0,0.04435526]
[1729558834247,0.074523,67117.0,67115.0,0.2629]
[1729558835145,0.02977932,67117.0,67116.0,0.04440597]
[1729558835344,0.074525,67115.0,67114.0,0.05920624]
[1729558835659,0.244525,67115.0,67114.0,0.05920624]
[1729558836357,0.074527,67113.0,67111.0,0.07416749]
[1729558836562,0.244529,67111.0,67110.0,0.00223512]
[1729558836958,0.17,67111.0,67107.0,0.07416749]
[1729558837261,0.244532,67108.0,67106.0,0.00017921]
[1729558837451,0.074532,67108.0,67107.0,0.09605568]
[1729558837850,0.074532,67108.0,67107.0,0.18486576]
[1729558838045,0.074532,67108.0,67107.0,0.09586478]
[1729558838358,0.3608,67112.0,67107.0,0.09586478]
[1729558838654,0.3608,67112.0,67111.0,0.08908333]
[1729558838858,0.074527,67113.0,67111.0,0.18494918]
[1729558839060,0.074527,67113.0,67112.0,0.09586478]